{"text_format":"1","workbook":"xlsx","n_sheets":1,"sheets":["Лист1"],"not_rendered":{"charts":0,"images":5,"macros":1,"external_links":0,"defined_names":2,"comments":1,"pivot_tables":0},"unopened":[],"bounds":{"document_bytes":16777216,"sheet_cells":100000,"rows_first":2000,"rows_last":500,"rows_between":2000,"halvings":0,"cell_chars":16384,"cell_head_chars":4096},"cells_cut":0,"cells_raw":0,"read":"whole","date_system":"1900"}

{"sheet":"Лист1","index":0,"n_rows":283,"n_cols":5,"rows_kept":283,"cut":false,"hidden":false,"merged":[[7,1,7,4],[8,1,8,4],[6,2,6,4],[0,2,0,3],[1,2,1,3],[2,2,2,3],[3,2,3,4],[5,3,5,4]]}
[]
[]
[]
[]
[null,null,"Заказчик"]
[null,null,null,{"$f":"TODAY()","v":"2024-08-22"}]
[]
[]
[null,"Запасные части для компрессоров Frascold"]
[{"$f":"SUM(F11:F283)","v":0},null,"Наименование /Discription"," код / Code","Ед."]
[{"$f":"F11","v":0},1,"Прокладка передней крышки / Flange gasket / Серия А-В","S1251033C","шт"]
[{"$f":"F12","v":0},{"$f":"B11+1","v":2},"Прокладка передней крышки / Flange gasket / Серия F-Q","S3621033","шт"]
[0,{"$f":"1+B12","v":3},"Прокладка передней крышки / Flange gasket / Серия S","S4451033","шт"]
[0,4,null,null,"шт"]
[0,5,"Прокладка между крышкой и корпусом электродвигателя /  Серия F-Q","S3621034C","шт"]
[0,6,"Прокладка между крышкой и корпусом электродвигателя /  Серия S","S4451034","шт"]
[0,7,"Прокладка между крышкой и корпусом электродвигателя /   Серия W","S8701034B","шт"]
[0,8,null,null,"шт"]
[0,9,"Прокладка между картером и клапанной плитой      A05-5Y,    A07-5Y, A1-7Y,      A1.5-7Y","S1351031E","шт"]
[0,10,"Прокладка между картером и клапанной плитой   A07-6Y,  A1-6Y,  A1.5-8Y,  В1.5-9.1Y","S1451031E","шт"]
[0,11,"Прокладка между картером и клапанной плитой  B1.5-10.1Y,    B2-10.1Y","S1461031","шт"]
[0,12,"Прокладка между картером и клапанной плитой      D2-11.1Y,      D2-15.1Y,      D3-15.1Y,      D3-16.1Y,     D4-16.1Y,    Q4-21.1Y,    Q5-21.1Y,     Q4-24.1Y,  Q5-24.1Y,   Q5-28.1Y,    Q7-28.1Y,    D4-19.1Y","S2341031","шт"]
[0,13,"Прокладка между картером и клапанной плитой /    Q4-20.1Y","S4001031","шт"]
[0,14,"Прокладка между картером и клапанной плитой /    S5-33Y,     S7-33Y","S4321031A","шт"]
[0,15,"Прокладка между картером и клапанной плитой /    S8-42Y","S3641031A","шт"]
[0,16,"Прокладка между картером и клапанной плитой /    S12-42Y,   F5-24.1Y","S3631031A","шт"]
[0,17,"Прокладка между картером и клапанной плитой /   S10-52Y,     S15-52Y,   S15-56Y,    S20-56Y","S4451031A","шт"]
[0,18,"Прокладка между картером и клапанной плитой /  Gasket valve plate - body /   V15-59Y,   V20-59Y,   V10-42-29Y,            Z15-60-30Y(3 pcs),   Z20-72-36Y(3 pcs)","S6301031C","шт"]
[0,19,"Прокладка между картером и клапанной плитой / Gasket valve plate -   V20-84Y,   V30-84Y,    Z30-126Y,   Z40-126Y,      W40-168Y,    W50-168Y,  V10-42-29Y,     Z25-84-42Y(3 pcs)","S6401031C","шт"]
[0,20,"Прокладка между картером и клапанной плитой /    Gasket valve plate - body /    Z40-140Y,     Z50-140Y,     V25-93Y,   V32-93Y,    W50-187Y,  W60-187Y","S8601031B","шт"]
[0,21,"Прокладка между картером и клапанной плитой / Gasket valve plate - body /    V25-103Y,    V35-103Y,    Z40-154Y,   Z50-154Y,  Z50-185Y,   W70-206Y,   W60-206Y,   Z30-102.51Y,   2Z30-102.51Y,   2Z35-112.56Y,   2Z40-123.62Y","S6501031D","шт"]
[0,22,"Прокладка между картером и клапанной плитой /   W75-228Y,   W70-228Y","S8751031","шт"]
[0,23,"Прокладка между картером и клапанной плитой /   W80-240Y,    W75-240Y","S8801031","шт"]
[0,24,null,null,"шт"]
[0,25,"Прокладка между верхней крышкой и клапанной плитой / серия A, B","S1501032","шт"]
[0,26,"Прокладка между верхней крышкой и клапанной плитой   серия S, F","S3631032","шт"]
[0,27,null,null,"шт"]
[0,28,"Комплект прокладок / Gasket Kit /  A1.5-7Y","SK0200","шт"]
[0,29,"Комплект прокладок / Gasket Kit /  A1-6Y,  B1.5-9.1Y","SK0300","шт"]
[0,30,"Комплект прокладок / Gasket Kit /  B1.5-10.1Y,  B2-10.1Y","SK0405","шт"]
[0,31,"Комплект прокладок / Gasket Kit /  D2-11.1Y,  D2-15.1,  D3-15.1Y,  D3-16.1Y,  D4-16.1Y","SK0500","шт"]
[0,32,"Комплект прокладок / Gasket Kit /  D2-13.1Y,  D3-13.1,  D3-18.1Y,  D4-18.1Y,  D3-19.1Y","SK0600","шт"]
[0,33,"Комплект прокладок / Gasket Kit /  Q5-21.1Y,  Q7-28.1Y","SK1230","шт"]
[0,34,"Комплект прокладок / Gasket Kit /  Q4-25.1Y,  Q5-25.1Y,  Q5-28.1Y,  Q5-33.1Y,  Q7-33.1Y,  Q7-36.1Y","SK1220","шт"]
[0,35,"Комплект прокладок / Gasket Kit /  S8-42Y","SK1450","шт"]
[0,36,"Комплект прокладок / Gasket Kit /  S12-42Y","SK1470","шт"]
[0,37,"Комплект прокладок / Gasket Kit /  S10-52Y,  S15-52Y,  S15-56Y,  S20-56Y","SK1700","шт"]
[0,38,"Комплект прокладок / Gasket Kit /  S20-63Y,  S25-63Y","SK1720","шт"]
[0,39,"Комплект прокладок / Gasket Kit /  V15-71Y","SK1900","шт"]
[0,40,"Комплект прокладок / Gasket Kit /  V25-71Y","SK2000","шт"]
[0,41,"Комплект прокладок / Gasket Kit /  V20-84Y","SK2100","шт"]
[0,42,"Комплект прокладок / Gasket Kit /  V30-84Y","SK2200","шт"]
[0,43,"Комплект прокладок / Gasket Kit /  V25-103Y,  V35-103Y","SK2220","шт"]
[0,44,"Комплект прокладок / Gasket Kit /  Z25-106Y,  Z35-106Y","SK2400","шт"]
[0,45,"Комплект прокладок / Gasket Kit /  Z30-126Y,  Z40-126Y","SK2500","шт"]
[0,46,"Комплект прокладок / Gasket Kit /  Z40-140Y,  Z50-140Y","SK2550","шт"]
[0,47,"Комплект прокладок / Gasket Kit /  Z40-154Y,  Z50-154Y,  Z40-168Y,  Z50-168Y,  Z50-185Y","SK2600","шт"]
[0,48,"Комплект прокладок / Gasket Kit /  W70-206Y","SK3000","шт"]
[0,49,"Комплект прокладок / Gasket Kit /  W70-228Y,  W75-228Y","SK3101","шт"]
[0,50,"Комплект прокладок / Gasket Kit /  W80-240Y","SK3100","шт"]
[0,51,"Комплект прокладок / Gasket Kit /  2Z30-102.51Y,  2Z35-112.56Y,  2Z40-123.62Y","SK2640","шт"]
[0,52,null,null,"шт"]
[0,53,"Дисковой разбрызгиватель масла    A05-4,    A05-5,   A07-5,   A07-6,   A1-6Y","S1251008","шт"]
[0,54,"Дисковой разбрызгиватель масла / Oil thower disc   A1-7,   A1.5-7,    A1.5-8Y","S1351008","шт"]
[0,55,"Дисковой разбрызгиватель масла / Oil thower disc / Серия В","S1411008","шт"]
[0,56,"Дисковой разбрызгиватель масла  D2-11.1,    D2-13.1,   D3-13.1,   D3-18.1,   D4-18.1","S2341008","шт"]
[0,57,"Дисковой разбрызгиватель масла  D2-15.1,  D3-15.1,  D3-16.1,  D4-16.1,  D3-19.1Y,  D4-19.1Y","S2351008","шт"]
[0,58,"Дисковой разбрызгиватель масла  Q4-21.1,     Q5-21.1,      Q4-25.1,    Q5-25.1,    Q7-25.1Y","S4011008","шт"]
[0,59,"Дисковой разбрызгиватель масла/ Oil thower disc /   S8-42,     S12-42Y","S4501008","шт"]
[0,60,null,null,"шт"]
[0,61,"Маслонасос в комплекте / Oil pump kit position /   Серия   V - Z","SK210000","шт"]
[0,62,"Маслонасос в комплекте / Oil pump kit position /   Серия W","SK210100","шт"]
[0,63,"Реле давления масла INT250FR в комплекте  / DIFF.PR. SWITCH KIT INT250FR /        Серия V - Z - W","EC1630DRIC","шт"]
[0,64,"Реле давления масла INT250FR в комплекте  / DIFF.PR. SWITCH KIT INT250FR /   2Z30-102.51Y,  2Z35-112.56Y,  2Z40-123.62Y with DELTA P2","EC1620RIC","шт"]
[0,65,null,null,"шт"]
[{"$f":"F76","v":0},66," Шатун / Connecting rod / A05-5Y,  A1-6Y,  A07-6Y,  A07-5Y,  A05-4Y","S1251003AA","шт"]
[0,{"$f":"1+B76","v":67}," Шатун / Connecting rod /       A1.5-7Y,     A1.5-8Y,     A1-7Y","S1351003AA","шт"]
[0,68," Шатун / Connecting rod /    B1.5-9.1Y,    B2-10.1Y,    B1.5-10.1Y","S1411003AA","шт"]
[0,69," Шатун / Connecting rod /    D2-11.1Y,     D3-13.1Y,     D2-13.1Y","S2321003AA","шт"]
[0,70," Шатун / Connecting rod /   D3-16.1Y,   D4-19.1Y,   D3-19.1Y,    D4-16.1Y","S2471003AA","шт"]
[0,71," Шатун / Connecting rod /  Q7-36.1Y,   Q5-36.1Y","S4051003AA","шт"]
[0,72," Шатун / Connecting rod /  S8-42Y,   S12-42Y","S4541003AA","шт"]
[0,73," Шатун / Connecting rod /   S10-52Y,   S15-52Y","S4521003AA","шт"]
[0,74," Шатун / Connecting rod /   W50-168Y,      W80-240Y,       W75-240Y,        W75-228Y,        W70-228Y,      W70-206Y,       W60-206Y,        W60-187Y, W50-187Y,     W40-168Y,     W40-142Y","S8701003BB","шт"]
[0,75,null,null,"шт"]
[0,76,"Поршень / Piston /      A05-5Y,     A07-5Y,     A1-7Y,     A1.5-7Y","S1351004-A","шт"]
[0,77,"Поршень / Piston /    A07-6Y,      A1-6Y,       A1.5-8Y,          B1.5-9.1Y","S1451004-A","шт"]
[0,78,"Поршень / Piston /     B1.5-10.1Y,      B2-10.1Y,   ","S1501004AA","шт"]
[0,79,"Поршень / Piston /     S8-42Y,     S12-42Y","S3631004","шт"]
[0,80,"Поршень / Piston /   V15-71Y,    V25-71Y,    Z25-106Y,    Z35-106Y,    Z20-72-36Y,    W40-142Y ","S6351004-A","шт"]
[0,81,"Поршень / Piston /  V25-93Y,   V32-93Y,   W50-187Y,   W60-187Y","S8601004-A","шт"]
[0,82,"Поршень / Piston /     V25-103Y,     V35-103Y,      Z40-154Y,     Z50-154Y,    W60-206Y,   W70-206Y,   W70-228Y,   W75-228Y,      Z30-102-51Y,     2Z30-102.51Y   в комплекте","S650A004","шт"]
[0,83,"Поршень / Piston /    W75-240Y,      W80-240Y","S8801004","шт"]
[0,84,"Поршень / Piston /   V15-59Y,    V20-59Y,    V10-42-29Y,     Z15-60-30Y","S6301004-A","шт"]
[0,85,null,null,"шт"]
[0,86,"Поршневой палец / Piston pin / A05-5Y,  A07-5Y,  A1-7Y,  A1.5-7Y","S1351005","шт"]
[0,87,"Поршневой палец / Piston pin /   A1-6Y,   A07-6Y,  A1.5-8Y,  B1.5-9.1Y,   B1.5-10.1Y,  B2-10.1Y,  Q4-20.1Y","S1451005","шт"]
[0,88,"Поршневой палец / Piston pin /   D2-11.1Y,     D2-15.1Y,    D3-15.1Y,     D3-16.1Y,  D4-16.1Y,   Q4-19.1Y,    Q4-21.1Y,    Q5-21.1Y,  Q4-24.1Y,  Q5-24.1Y,  Q5-28.1Y,  Q7-28.1Y","S4021005","шт"]
[0,89,"Поршневой палец / Piston pin /    D2-13.1Y,     D3-13.1Y,    D3-18.1Y,  D4-18.1Y,  D3-19.1Y,  D4-19.1Y,   Q4-25.1Y,     Q5-25.1Y, Q7-25.1Y, Q5-33.1Y,  Q7-33.1Y,  Q7-36.1Y  ","S4031005A","шт"]
[0,90,"Поршневой палец / Piston pin /  V15-71Y,    V15-59Y,    V20-59Y,   V25-71Y,   V10-42-29Y,  Z25-106Y,  Z35-106Y,  Z15-60-30Y,  Z20-72-36Y,  W40-142Y","S6301005","шт"]
[0,91,"Поршневой палец / Piston pin / V20-84Y,   V30-84Y,   V25-93Y,   V32-93Y,   V25-103Y,  V35-103Y,       V10-42-29Y,  Z30-126Y,     Z40-126Y,     Z40-154Y,      Z50-154Y,   W40-168Y,   W-50-168Y, W50-187Y,     W60-187Y,  W60-206Y,  W70-206Y,  W70-228Y, W75-228Y,  W75-240Y,  W80-240Y, Z25-84-42Y,  Z30-102-51Y","S6501005","шт"]
[0,92,null,null,"шт"]
[0,93,"Компрессионное кольцо / Compression ring /     A05-5Y,     A1.5-7Y,     A1-7Y,      A07-5Y","S1355001","шт"]
[0,94,"Компрессионное кольцо / Compression ring /  A1-6Y,   B1.5-9.1Y,   B2-10Y,   B1.5-10Y,   B1.5-9Y,   A1.5-8Y,  A07-6Y","S1455001","шт"]
[0,95,"Компрессионное кольцо / Compression ring /   B1.5-10.1Y,      B2-10.1Y,     Q4-20.1Y","S1505001","шт"]
[0,96,"Компрессионное кольцо / Compression ring /    S8-42Y,     S12-42Y   ","S3635001","шт"]
[0,97,"Компрессионное кольцо / Compression ring /    S10-52Y,     S15-52Y,    S15-56Y,    S20-56Y","S4455001","шт"]
[0,98,"Компрессионное кольцо / Compression ring /       V20-84Y,       V30-84Y,       V10-42-29Y,       W40-168Y,    W50-168Y,  Z30-126Y,    Z40-126Y,    Z25-84-42Y ","S6405001","шт"]
[0,99,"Компрессионное кольцо / Compression ring /   V25-93Y,   V32-93Y,   W50-187Y,    W60-187Y","S8605001","шт"]
[0,100,"Компрессионное кольцо / Compression ring /   V25-103Y,   V35-103Y,     W60-206Y,      W70-206Y,      W70-228Y,  W75-228Y,    Z30-102.51Y,    Z40-154Y,     Z50-154Y","S6505001","шт"]
[0,101,"Компрессионное кольцо / Compression ring /     W80-240Y,     W75-240Y","S8805001","шт"]
[0,102,"Компрессионное кольцо / Compression ring /  S10-51Y,   S15-51Y,  V15-59Y,  V20-59Y,    V10-42-29Y,    Z15-60-30Y","S4495001","шт"]
[0,103,"Компрессионное кольцо / Compression ring /      D2-11.1Y,         D4-16.1Y,         D3-16.1Y,       D3-15.1Y,       D2-15.1Y,   Q7-28.1Y,    Q5-28.1Y,    Q5-24.1Y,    Q4-24.1Y,    Q5-21.1Y,    Q4-21.1Y","S4024001","шт"]
[0,104,null,null,"шт"]
[0,105,"Маслосъемное кольцо / Oil scraper ring  /    S8-42Y,     S12-42Y","S3636001","шт"]
[0,106,"Маслосъемное кольцо / Oil scraper ring /    S10-52Y,     S15-52Y,     S15-56Y,     S20-56Y","S4456001","шт"]
[0,107,"Маслосъемное кольцо / Oil scraper ring /   V15-71Y,    V25-71Y,     Z25-106Y,     Z35-106Y,     Z20-72-36Y","S6356001","шт"]
[0,108,"Маслосъемное кольцо / Oil scraper ring /  V20-84Y,   V30-84Y,     Z30-126Y,     Z40-126Y,     Z25-84-42Y ","S6406001","шт"]
[0,109,"Маслосъемное кольцо / Oil scraper ring /    V25-93Y,    V32-93Y,     W50-187Y,      W60-187Y","S8606001","шт"]
[0,110,"Маслосъемное кольцо / Oil scraper ring /    V25-103Y,       V35-103Y,        W60-206Y,         W70-206Y,      W70-228Y,  W75-228Y,  Z40-154Y,     Z50-154Y,    Z30-102.51Y","S6506001","шт"]
[0,111,"Маслосъемное кольцо / Oil scraper ring /    W75-240Y,      W80-240Y","S8806001","шт"]
[0,112,"Маслосъемное кольцо / Oil scraper ring /   S10-51Y,      S15-51Y,     V15-59Y,     V20-59Y,     Z15-60-30Y","S4496001","шт"]
[0,113,null,null,"шт"]
[0,114,"Клапанная плита / Valve plate /   A05-4Y","SK12500","шт"]
[0,115,"Клапанная плита / Valve plate /   A05-5Y,  A07-5Y,   A1-7Y,    A1.5-7Y","SK12501","шт"]
[0,116,"Клапанная плита / Valve plate /  A07-6Y,  A1-6Y,  A1.5-8Y,   B1.5-9.1Y","SK12502","шт"]
[0,117,"Клапанная плита / Valve plate /     B1.5-10.1Y","SK14504","шт"]
[0,118,"Клапанная плита / Valve plate /   B2-10.1Y","SK14505","шт"]
[0,119,"Клапанная плита / Valve plate /   Q4-20.1","SK24804","шт"]
[0,120,"Клапанная плита / Valve plate /  D2-11.1Y,    D2-15.1Y,   Q5-21.1Y,   Q5-28.1Y,   Q5-24.1Y,   Q4-24.1Y,    Q4-21.1Y","SK24800","шт"]
[0,121,"Клапанная плита / Valve plate /    D2-13.1Y,    Q4-25.1Y,        Q5-25.1Y           ","SK24801","шт"]
[0,122,"Клапанная плита / Valve plate /  D3-15.1Y,    D3-16.1Y,     D4-16.1Y     ","SK24803","шт"]
[0,123,"Клапанная плита / Valve plate /     D4-19.1Y,      D3-19.1Y,      D4-18.1Y,       D3-18.1Y,        D3-13.1Y,        Q7-28.1Y,    Q7-36.1Y,  Q7-33.1Y,  Q7-25.1Y,    Q5-33.1Y,  Q5-36.1Y","SK24802","шт"]
[0,124,"Клапанная плита / Valve plate /   S8-42Y","SK44902","шт"]
[0,125,"Клапанная плита / Valve plate /   S5-33Y","SK44900","шт"]
[0,126,"Клапанная плита / Valve plate /   F4-16Y,    S7-33Y","SK36200","шт"]
[0,127,"Клапанная плита / Valve plate /   F5-24.1Y,   S12-42Y","SK36204","шт"]
[0,128,"Клапанная плита / Valve plate / S10-52Y,  S15-52Y  S15-56Y,  S20-56Y","SK44906","шт"]
[0,129,"Клапанная плита / Valve plate / S20-63Y,  S25-63Y ","SK44907","шт"]
[{"$f":"F140","v":0},130,"Клапанная плита 1 ступени / Valve plate /   V10 42.29Y,    Z25 84.42Y","SK45501","шт"]
[0,{"$f":"1+B140","v":131},"Клапанная плита 2 ступени / Valve plate /   V10 42.29Y,    Z15 60.30Y","SK45502","шт"]
[0,132,"Клапанная плита 1 ступени / Valve plate /   Z15 60.30Y      (2gty)","SK63001","шт"]
[0,133,"Клапанная плита 1 ступени / Valve plate /   Z20 72.36Y      (2gty)","SK63002","шт"]
[0,134,"Клапанная плита 2 ступени / Valve plate /   Z20 72.36Y      ","SK63003","шт"]
[0,135,"Клапанная плита 2 ступени / Valve plate /   Z25 84.42Y      ","SK63004","шт"]
[0,136,"Клапанная плита / Valve plate /   V15-59Y","SK49500","шт"]
[0,137,"Клапанная плита / Valve plate /   V20-59Y","SK49501","шт"]
[0,138,"Клапанная плита / Valve plate /   V15-71Y,    Z25-106Y","SK49502","шт"]
[0,139,"Клапанная плита / Valve plate /   V25-71Y,   Z35-106Y,   W40-142Y","SK49503","шт"]
[0,140,"Клапанная плита / Valve plate /  V20-84Y,   Z30-126Y,   W40-168Y","SK49504","шт"]
[0,141,"Клапанная плита / Valve plate /  V30-84Y,   Z40-126Y,   W50-168Y","SK49505","шт"]
[0,142,"Клапанная плита / Valve plate /   V35-103Y,     Z50-154Y,    W70-206Y","SK65006","шт"]
[0,143,"Клапанная плита / Valve plate /  V25-103Y,   Z40-154Y,    Z40-168Y,    Z50-168Y,    Z50-185Y,    W60-206Y","SK65005","шт"]
[0,144,"Клапанная плита / Valve plate /    Z40-140Y","SK87003","шт"]
[0,145,"Клапанная плита / Valve plate /    V32-93Y,    Z50-140Y,   W60-187Y","SK87004","шт"]
[0,146,"Клапанная плита / Valve plate /    V25-93Y,        W50-187Y","SK870033","шт"]
[0,147,"Клапанная плита / Valve plate /    W75-228Y","SK87009","шт"]
[0,148,"Клапанная плита / Valve plate /    W80-240Y","SK87010","шт"]
[0,149,"Клапанная плита 1-й ступени / 1st stage valve plate /      2Z30-102.51Y,  2Z35-112.56Y,  2Z40-123.62Y","SK63007","шт"]
[0,150,"Клапанная плита 2-й ступени / 2nd stage valve plate /     2Z30-102.51Y,  2Z35-112.56Y,  2Z40-123.62Y","SK63009","шт"]
[0,151,"Клапанная плита 1-й ступени / 1st stage valve plate /       Z30-102.51Y","SK63006","шт"]
[0,152,"Клапанная плита 2-й ступени / 2nd stage valve plate /     Z30-102.51Y","SK63005","шт"]
[0,153,null,null,"шт"]
[0,154,"Электронный модуль 220v /   Electronic module 220V AC / Серия А, В, D,  Q,  S","ECA01A","шт"]
[0,155,"Электронный модуль 220v /   Electronic module 220V AC / Серия Q,  S","EC01D-RIC","шт"]
[0,156,"Электронный модуль 220v /  INT 69 Electronic module 220V AC / Серия V,  Z,  W","ECA11D","шт"]
[0,157,"Электронный модуль 220 v /      для двухступенчатых компрессоров серии  Z","EC2252","шт"]
[0,158,null,null,"шт"]
[0,159,"Комплект опорной втулки коленвала / Friction bearing kit / серия   А - В","SK140000","шт"]
[0,160,"Комплект опорной втулки коленвала / Friction bearing kit / серия  D","SK140100","шт"]
[0,161,"Комплект опорной втулки коленвала / Friction bearing kit / серия  Q","SK140600","шт"]
[0,162,"Комплект опорной втулки коленвала / Friction bearing kit / серия  S","SK140300","шт"]
[0,163,"Комплект опорной втулки коленвала / Friction bearing kit / серия   V - Z","SK140400","шт"]
[0,164,"Комплект опорной втулки коленвала / Friction bearing kit / серия   W","SK140500","шт"]
[0,165,null,null,"шт"]
[0,166,"Электродвигатель в сборе / Complecte electric motor /     A05-4Y,   A05-5Y,    A07-5Y,    A07-6Y","SK230111","шт"]
[0,167,"Электродвигатель в сборе / Complecte electric motor /      A1-6Y,    A1-7Y","SK230211","шт"]
[0,168,"Электродвигатель в сборе / Complecte electric motor /    A1.5-7Y,     A1.5-8Y","SK230311","шт"]
[0,169,"Электродвигатель в сборе /Complecte electric motor     В1.5-9.1Y,     B1.5-10.1Y","SK230312","шт"]
[0,170,"Электродвигатель в сборе / Complecte electric motor /     B2-10.1Y","SK230510","шт"]
[0,171,"Электродвигатель в сборе/Complecte electric motor/     D2-11.1Y,     D2-13.1Y","SK230533","шт"]
[0,172,"Электродвигатель в сборе / Complecte electric motor /   D3-13.1Y    ","SK230535","шт"]
[0,173,"Электродвигатель в сборе / Complecte electric motor /   D2-15.1Y    ","SK230534","шт"]
[0,174,"Электродвигатель в сборе / Complecte electric motor /   D3-15.1Y    ","SK230544","шт"]
[0,175,"Электродвигатель в сборе / Complecte electric motor /    D3-16.1Y,    D3-19.1Y    ","SK230546","шт"]
[0,176,"Электродвигатель в сборе / Complecte electric motor/     D4-16.1Y,     D4-19.1Y    ","SK230700","шт"]
[0,177,"Электродвигатель в сборе / Complecte electric motor /   D3-18.1Y    ","SK230542","шт"]
[0,178,"Электродвигатель в сборе / Complecte electric motor /   D4-18.1Y    ","SK230701","шт"]
[0,179,"Электродвигатель в сборе /Complecte electric motor /   Q4-20.1Y                                                                      Электродвигатель  Q4-19.1, Q4-21.1, Q4-24.1, Q4-25.1Y","SK234113","шт"]
[0,180,"Электродвигатель в сборе /Complecte electric motor /   Q4-21.1Y,    Q4-25.1Y","SK234111","шт"]
[0,181,"Электродвигатель в сборе /Complecte electric motor /   Q4-24.1Y                                                                      Электродвигатель  Q4-19.1, Q4-21.1, Q4-24.1, Q4-25.1Y","SK234112","шт"]
[0,182,"Электродвигатель в сборе /Complecte electric motor /   Q5-24.1Y                                                                      Электродвигатель  Q5-19.1, Q5-21.1, Q5-24.1, Q5-25.1, Q5-28.1, Q5-33.1, Q5-36.1Y","SK234213","шт"]
[0,183,"Электродвигатель в сборе /Complecte electric motor/    Q5-21.1Y,     Q5-25.1Y","SK234211","шт"]
[0,184,"Электродвигатель в сборе /Complecte electric motor/    Q5-28.1Y,    Q5-33.1Y    ","SK233111","шт"]
[0,185,"Электродвигатель в сборе /Complecte electric motor /   Q7-25.1Y                                                                      Электродвигатель  Q7-28.1, Q7-33.1, Q7-36.1Y","SK233213","шт"]
[0,186,"Электродвигатель в сборе /Complecte electric motor /    Q7-28.1,     Q7-33.1Y","SK233211","шт"]
[0,187,"Электродвигатель в сборе / Complecte electric motor /    Q7-36.1Y    ","SK234313","шт"]
[0,188,"Электродвигатель в сборе / Complecte electric motor /    S7-33,     S7-39Y","SK231313","шт"]
[0,189,"Электродвигатель в сборе / Complecte electric motor /    S8-42Y    ","SK231314","шт"]
[0,190,"Электродвигатель в сборе / Complecte electric motor /    S12-42Y    ","SK231414","шт"]
[0,191,"Электродвигатель в сборе / Complecte electric motor /    S10-52Y    ","SK231415","шт"]
[0,192,"Электродвигатель в сборе / Complecte electric motor /    S15-52Y    ","SK231554","шт"]
[0,193,"Электродвигатель в сборе / Complecte electric motor /    S15-56Y    ","SK231553","шт"]
[{"$f":"F204","v":0},194,"Электродвигатель в сборе / Complecte electric motor /    S20-56Y    ","SK231613","шт"]
[0,{"$f":"1+B204","v":195},"Электродвигатель в сборе / Complecte electric motor /    S20-63Y    ","SK231710","шт"]
[0,196,"Электродвигатель в сборе / Complecte electric motor /    S25-63Y    ","SK231810","шт"]
[0,197,"Электродвигатель в сборе / Complecte electric motor /    V15-59Y,     V15-71Y,      Z15-60-30Y    ","SK231513","шт"]
[0,198,"Электродвигатель в сборе / Complecte electric motor /   V20-59Y,     V20-84Y,     Z20-72-36Y    ","SK231713","шт"]
[0,199,"Электродвигатель в сборе / Complecte electric motor /   V25-71Y,   V25-93Y,   V25-103Y,    Z25-106Y,    Z25-84-42Y    ","SK231813","шт"]
[0,200,"Электродвигатель в сборе / Complecte electric motor /    V30-84Y,     Z30-126Y,    Z30-102.51Y,   2Z30-102.51Y    ","SK231913","шт"]
[0,201,"Электродвигатель в сборе /Complecte electric motor/    V35-103Y,    Z35-106Y,   2Z35-112.56Y,    V32-93Y","SK232113","шт"]
[0,202,"Электродвигатель в сборе /Complecte electric motor/  Z40-126Y,   Z40-140Y,    Z40-154Y,   Z40-168Y,   2Z40-123.62Y ","SK232213","шт"]
[0,203,"Электродвигатель в сборе / Complecte electric motor /     Z50-140Y,    Z50-154Y,    Z50-168Y,    Z50-185Y    ","SK232413","шт"]
[0,204,"Электродвигатель в сборе /Complecte electric motor /   W50-168,    W50-187Y ","SK232513","шт"]
[0,205,"Электродвигатель в сборе /Complecte electric motor /    W60-187,    W60-206Y ","SK232613","шт"]
[0,206,"Электродвигатель в сборе /Complecte electric motor /    W70-206,    W70-228Y ","SK232713","шт"]
[0,207,"Электродвигатель в сборе / Complecte electric motor /     W75-228Y,    W80-240Y,     W75-240Y    ","SK232813","шт"]
[0,208,null,null,"шт"]
[0,209,"Клапан регулирования давления / Pressure regulating valve / серия V","S430A076","шт"]
[0,210,"Клапан регулирования давления / Pressure regulating valve / серия Z","S650A076","шт"]
[0,211,"Клапан регулирования давления / Pressure regulating valve / серия W","S860A076","шт"]
[0,212,null,null,"шт"]
[0,213,"Коленчатый вал / Shaft / A05-5Y,   A1-6Y,  A07-6Y,  A07-5Y,  A05-4Y","S1251002AA","шт"]
[0,214,"Коленчатый вал / Shaft /  A1.5-8Y,   A1.5-7Y,   A1-7Y","S1351002AA","шт"]
[0,215,"Коленчатый вал / Shaft /   B1.5-9.1Y,    B1.5-10.1Y,   B2-10.1Y","S1411002AA","шт"]
[0,216,"Коленчатый вал / Shaft /   D2-11.1Y,    D2-13.1Y,     D3-13.1Y","S2331002AA","шт"]
[0,217,"Коленчатый вал / Shaft /   D2-15.1Y,    D3-15.1Y,    D3-18.1Y,    D4-18.1Y","S2451002AA","шт"]
[0,218,"Коленчатый вал / Shaft /   D4-19.1Y,   D3-19.1Y,   D4-16.1Y,     D3-16.1Y","S2481002AA","шт"]
[0,219,"Коленчатый вал / Shaft /  Q7-25.1Y,       Q5-25.1Y,      Q4-25.1Y,    Q5-21.1Y,   Q4-21.1Y","S4011002AA","шт"]
[0,220,"Коленчатый вал / Shaft /  Q7-33.1Y,   Q5-33.1Y,    Q7-28.1Y,     Q5-28.1Y,  Q4-20.1Y","S4031002AA","шт"]
[0,221,"Коленчатый вал / Shaft /   Q7-36.1Y,    Q5-36.1Y","S4051002AA","шт"]
[0,222,"Коленчатый вал / Shaft /   S8-42Y,    S12-42Y","S4401002AA","шт"]
[0,223,"Коленчатый вал / Shaft /   S10-52Y,    S15-52Y","S4481002AA","шт"]
[0,224,"Коленчатый вал / Shaft /   S15-56Y,    S20-56Y","S4451002AA","шт"]
[0,225,"Коленчатый вал / Shaft /   S20-63Y,    S25-63Y","S4681002AA","шт"]
[0,226,"Коленчатый вал / Shaft /    V10-42-29Y,     V20-59Y,     V15-59Y,     V35-103Y,      V25-103Y,    V32-93Y,  V25-93Y,   V30-84Y,   V20-84Y,   V25-71Y,   V15-71Y","S4951002AA","шт"]
[0,227,"Коленчатый вал / Shaft /   Z30-102.51Y,     Z25-84.42Y,      Z20-72.36Y,   Z15-60-30Y,        Z30-126Y,         Z50-154Y,        Z40-154Y,         Z40-126Y,   Z35-106Y,     Z25-106Y,   Z40-140Y,   Z50-140Y,   2Z30-102.51Y","SK6501002","шт"]
[0,228,"Коленчатый вал / Shaft /    Z40-168Y,    Z50-168Y,    2Z35-112.56Y","SK6551002","шт"]
[0,229,"Коленчатый вал / Shaft /     Z50-185Y,    2Z40-123.62Y","SK6601002","шт"]
[0,230,"Коленчатый вал / Shaft /     W70-206Y,       W60-206Y,       W50-168Y,     W40-168Y,    W40-142Y,     W60-187Y,     W50-187Y","S8701002","шт"]
[0,231,"Коленчатый вал / Shaft /    W80-240Y,     W75-240Y,     W75-228Y,     W70-228Y","S8801002","шт"]
[0,232,null,null,"шт"]
[0,233,"Клеммник / Termal plate / Серия А-В-С-D-F-Q","SK260200","шт"]
[0,234,"Клеммник / Termal plate / Серия V-Z-W","SK261040","шт"]
[0,235,"Клеммник / Termal plate / Серия S (10 шурупов)","SK260910","шт"]
[0,236,null,null,"шт"]
[0,237,"Шатунно-поршневая группа / Connecting rod piston kit /    A 05-4Y ","SK130100","шт"]
[0,238,"Шатунно-поршневая группа / Connecting rod piston kit /   A 05-5,     A 07-5Y","SK130200","шт"]
[0,239,"Шатунно-поршневая группа / Connecting rod piston kit /    A 07-6,     A 1-6Y","SK130400","шт"]
[0,240,"Шатунно-поршневая группа / Connecting rod piston kit /   A 1-7,      A 1.5-7Y ","SK130300","шт"]
[0,241,"Шатунно-поршневая группа / Connecting rod piston kit /   A 1.5-8Y","SK130500","шт"]
[0,242,"Шатунно-поршневая группа / Connecting rod piston kit /  B 1.5-9.1Y","SK130600","шт"]
[0,243,"Шатунно-поршневая группа / Connecting rod     B 1.5-10.1,     B 2-10.1Y","SK130705","шт"]
[0,244,"Шатунно-поршневая группа / Connecting rod piston kit /  D 2-11.1Y","SK130801","шт"]
[0,245,"Шатунно-поршневая группа / Connecting rod piston kit    D 2-13.1,    D 3-13.1Y","SK131101","шт"]
[0,246,"Шатунно-поршневая группа / Connecting rod piston kit    D2-15.1,    D3-15.1Y","SK130905","шт"]
[0,247,"Шатунно-поршневая группа / Connecting rod piston kit    D3-16.1,    D4-16.1Y","SK131010","шт"]
[0,248,"Шатунно-поршневая группа / Connecting rod piston kit    D3-18.1,    D4-18.1Y","SK131205","шт"]
[0,249,"Шатунно-поршневая группа / Connecting rod piston kit    D3-19.1","SK131305","шт"]
[0,250,"Шатунно-поршневая группа / Connecting rod piston kit    Q5-21.1","SK133051","шт"]
[0,251,"Шатунно-поршневая группа / Connecting rod piston kit    Q4-25.1,    Q5-25.1","SK131920","шт"]
[0,252,"Шатунно-поршневая группа / Connecting rod piston kit    Q5-28.1,    Q7-28.1","SK133301","шт"]
[0,253,"Шатунно-поршневая группа / Connecting rod piston kit    Q5-33.1,    Q7-33.1","SK131960","шт"]
[0,254,"Шатунно-поршневая группа / Connecting rod piston kit    Q7-36.1","SK133405","шт"]
[0,255,"Шатунно-поршневая группа / Connecting rod piston kit /   S8-42,    S12-42Y ","SK133600","шт"]
[0,256,"Шатунно-поршневая группа / Connecting rod piston kit /   S10-52,    S15-52Y ","SK132320","шт"]
[0,257,"Шатунно-поршневая группа / Connecting rod piston kit    S15-56,    S20-56Y","SK132300","шт"]
[{"$f":"F268","v":0},258,"Шатунно-поршневая группа / Connecting rod piston kit    S20-63Y,    S25-63Y","SK132330","шт"]
[0,{"$f":"1+B268","v":259},"Шатунно-поршневая группа / Connecting rod piston kit    V15-71,   V25-71Y,   Z25-106Y,    Z35-106Y","SK132500","шт"]
[0,260,"Шатунно-поршневая группа / Connecting rod piston kit    V20-84,   V30-84Y,   Z30-126Y,    Z40-126Y","SK132600","шт"]
[0,261,"Шатунно-поршневая группа / Connecting rod piston kit     V25-103Y,      V35-103Y,            Z40-154Y,       Z50-154Y,  2Z30-102.51Y,         Z30-102.51Y","SK132700","шт"]
[0,262,"Шатунно-поршневая группа / Connecting rod piston kit   Z40-140Y,   Z50-140Y","SK133001","шт"]
[0,263,"Шатунно-поршневая группа / Connecting rod piston kit   Z40-168Y,   Z50-168Y,   2Z35-112.56Y","SK132705","шт"]
[0,264,"Шатунно-поршневая группа / Connecting rod piston kit   Z50-185Y,   2Z40-123.62Y","SK132710","шт"]
[0,265,"Шатунно-поршневая группа / Connecting rod piston kit /         Q4-20.1Y","SK133046","шт"]
[0,266,"Шатунно-поршневая группа / Connecting rod      Q4-24.1Y,     Q5-24.1Y ","SK133151","шт"]
[0,267,"Шатунно-поршневая группа / Connecting rod piston kit /   S5-33Y,   S7-33Y","SK132005","шт"]
[0,268,"Шатунно-поршневая группа / Connecting rod piston     V15-59Y,   V20-59Y,  V10-42.29Y,   Z15-60.30Y ","SK132400","шт"]
[0,269,"Шатунно-поршневая группа / Connecting rod piston kit /   V25-93Y,     V32-93Y,   Z40-140Y,   Z50-140Y","SK133001","шт"]
[0,270,"Шатунно-поршневая группа / Connecting rod piston kit    W40-168,     W50-168Y ","SK132900","шт"]
[0,271,"Шатунно-поршневая группа / Connecting rod piston kit    W50-187,      W60-187Y ","SK133000","шт"]
[0,272,"Шатунно-поршневая группа / Connecting rod piston kit   W60-206,    W70-206,     W70-228,      W75-228Y ","SK133100","шт"]
[0,273,"Шатунно-поршневая группа / Connecting rod piston kit    W75-240,     W80-240Y ","SK133200","шт"]